fUST/lending_fUST_20250212
["ID","MTS","AMOUNT","RATE_DAILY","PERIOD"]
[352836413,1739354963255,-583.1473004,0.00011992,2]
[352836414,1739354963277,-503.30095877,0.00011992,2]
[352836415,1739354963297,-500.0,0.00011992,2]
[352836416,1739354963318,-502.07914321,0.00011992,2]
[352836417,1739354963340,-500.0,0.00011992,2]
[352836418,1739354963362,-500.0,0.00011992,2]
[352836419,1739354963386,-500.0,0.00011992,2]
[352836420,1739354963407,-500.0,0.00011992,2]
[352836421,1739354963561,-500.0,0.00011992,2]
[352836422,1739354963586,-500.0,0.00011992,2]
[352836423,1739354963607,-500.0,0.00011992,2]
[352836424,1739354963629,-500.0,0.00011992,2]
[352836425,1739354963651,-500.0,0.00011992,2]
[352836426,1739354963676,-500.0,0.00011992,2]
[352836427,1739354963698,-500.0,0.00011992,2]
[352836428,1739354963720,-500.0,0.00011992,2]
[352836429,1739354963741,-500.0,0.00011992,2]
[352836430,1739354963764,-500.0,0.00011992,2]
[352836431,1739354963786,-500.0,0.00011992,2]
[352836432,1739354963808,-500.0,0.00011992,2]
[352836433,1739354963832,-500.0,0.00011992,2]
[352836434,1739354963856,-500.0,0.00011992,2]
[352836435,1739354963877,-500.0,0.00011992,2]
[352836436,1739354963899,-1136.29,0.00011992,2]
[352836437,1739354963921,-500.0,0.00011992,2]
[352836438,1739354963944,-500.0,0.00011992,2]
[352836439,1739354963966,-500.0,0.00011992,2]
[352836440,1739354963986,-500.0,0.00011992,2]
[352836441,1739354964006,-500.0,0.00011992,2]
[352836442,1739354964031,-4182.42,0.00011992,2]
[352836443,1739354964052,-500.0,0.00011992,2]
[352836444,1739354964073,-500.0,0.00011992,2]
[352836445,1739354964093,-500.0,0.00011992,2]
[352836446,1739354964114,-536.29,0.00011992,2]
[352836447,1739354964136,-500.0,0.00011992,2]
[352836448,1739354964156,-155.25728796,0.00011994,2]
[352836449,1739354964177,-500.0,0.00011994,2]
[352836450,1739354964198,-492.50985248,0.00011994,2]
[352836451,1739354964218,-500.0,0.00011994,2]
[352836452,1739354964240,-500.0,0.00011994,2]
[352836453,1739354964260,-500.0,0.00011994,2]
[352836454,1739354964283,-500.0,0.00011994,2]
[352836455,1739354964305,-372.64403976,0.00011994,2]
[352836456,1739354964328,-500.0,0.00011994,2]
[352836457,1739354964350,-500.0,0.00011994,2]
[352836458,1739354964372,-500.0,0.00011994,2]
[352836459,1739354964393,-500.0,0.00011994,2]
[352836460,1739354964414,-505.12203579,0.00011995,2]
[352836461,1739354964435,-9998.16847048,0.00012,2]
[352836462,1739354964457,-500.0,0.00012128,2]
[352836463,1739354964479,-500.0,0.00012128,2]
[352836464,1739354964501,-500.0,0.00012128,2]
[352836465,1739354964522,-500.0,0.00012129,2]
[352836466,1739354964543,-500.0,0.00012129,2]
[352836467,1739354964565,-321.58,0.00012129,2]
[352836468,1739354964586,-500.0,0.00012129,2]
[352836469,1739354964608,-500.0,0.00012129,2]
[352836470,1739354964629,-500.0,0.00012129,2]
[352836471,1739354964652,-231.59272626,0.00012129,2]
[352836472,1739354964676,-500.0,0.00012129,2]
[352836473,1739354964697,-500.0,0.00012129,2]
[352836474,1739354964720,-500.0,0.00012129,2]
[352836475,1739354964741,-500.0,0.00012129,2]
[352836476,1739354964763,-500.0,0.00012129,2]
[352836477,1739354964785,-500.0,0.00012129,2]
[352836478,1739354964807,-2816.37,0.00012129,2]
[352836479,1739354964829,-8858.28,0.00012129,2]
[352836480,1739354964852,-554.91,0.00012129,2]
[352836481,1739354964874,-532.94,0.00012129,2]
[352836482,1739354964896,-500.0,0.00012129,2]
[352836483,1739354964917,-500.0,0.00012129,2]
[352836484,1739354964939,-1123.34,0.00012129,2]
[352836485,1739354964963,-500.0,0.00012129,2]
[352836486,1739354964985,-290.7,0.00012129,2]
[352836487,1739354965006,-500.0,0.00012129,2]
[352836488,1739354965028,-500.0,0.00012129,2]
[352836489,1739354965051,-582.82,0.00012129,2]
[352836490,1739354965072,-500.0,0.00012129,2]
[352836491,1739354965094,-500.0,0.00012129,2]
[352836492,1739354965116,-500.0,0.00012129,2]
[352836493,1739354965137,-500.0,0.00012129,2]
[352836494,1739354965158,-500.0,0.00012129,2]
[352836495,1739354965178,-500.0,0.00012129,2]
[352836496,1739354965198,-500.0,0.00012129,2]
[352836497,1739354965219,-500.0,0.00012129,2]
[352836498,1739354965241,-500.0,0.00012129,2]
[352836499,1739354965262,-500.0,0.00012129,2]
[352836500,1739354965282,-500.0,0.00012129,2]
[352836501,1739354965303,-500.0,0.00012129,2]
[352836502,1739354965325,-500.0,0.00012129,2]
[352836503,1739354965347,-500.0,0.00012129,2]
[352836504,1739354965370,-1136.29,0.00012129,2]
[352836505,1739354965392,-500.0,0.00012129,2]
[352836506,1739354965415,-4182.42,0.00012129,2]
[352836507,1739354965435,-500.0,0.00012129,2]
[352836508,1739354965456,-500.0,0.00012129,2]
[352836509,1739354965477,-500.0,0.00012129,2]
[352836510,1739354965499,-536.29,0.00012129,2]
[352836511,1739354965520,-500.0,0.00012129,2]
[352836512,1739354965541,-500.0,0.00012131,2]
[352836513,1739354965563,-500.0,0.00012131,2]
[352836514,1739354965583,-302.58,0.00012131,2]
[352836515,1739354965604,-500.0,0.00012131,2]
[352836516,1739354965625,-500.0,0.00012131,2]
[352836517,1739354965647,-500.0,0.00012131,2]
[352836518,1739354965669,-500.0,0.00012265,2]
[352836519,1739354965694,-500.0,0.00012265,2]
[352836520,1739354965715,-500.0,0.00012265,2]
[352836521,1739354965738,-500.0,0.00012265,2]
[352836522,1739354965760,-500.0,0.00012265,2]
[352836523,1739354965782,-500.0,0.00012265,2]
[352836524,1739354965803,-500.0,0.00012265,2]
[352836525,1739354965823,-500.0,0.00012265,2]
[352836526,1739354965845,-500.0,0.00012265,2]
[352836527,1739354965866,-500.0,0.00012265,2]
[352836528,1739354965889,-500.0,0.00012265,2]
[352836529,1739354965911,-500.0,0.00012265,2]
[352836530,1739354965934,-188.32229763,0.00012265,2]
[352836531,1739354965961,-500.0,0.00012265,2]
[352836532,1739354965982,-500.0,0.00012265,2]
[352836533,1739354966004,-500.0,0.00012265,2]
[352836534,1739354966026,-500.0,0.00012265,2]
[352836535,1739354966047,-500.0,0.00012265,2]
[352836536,1739354966071,-500.0,0.00012266,2]
[352836537,1739354966094,-500.0,0.00012266,2]
[352836538,1739354966116,-500.0,0.00012266,2]
[352836539,1739354966139,-172.82,0.00012266,2]
[352836540,1739354966161,-238.1,0.00012266,2]
[352836541,1739354966183,-500.0,0.00012266,2]
[352836542,1739354966204,-500.0,0.00012266,2]
[352836543,1739354966230,-500.0,0.00012266,2]
[352836544,1739354966251,-500.0,0.00012266,2]
[352836545,1739354966273,-500.0,0.00012266,2]
[352836546,1739354966295,-2816.37,0.00012266,2]
[352836547,1739354966318,-8858.28,0.00012266,2]
[352836548,1739354966341,-554.91,0.00012266,2]
[352836549,1739354966364,-532.94,0.00012266,2]
[352836550,1739354966387,-500.0,0.00012266,2]
[352836551,1739354966412,-500.0,0.00012266,2]
[352836552,1739354966435,-1123.34,0.00012266,2]
[352836553,1739354966459,-500.0,0.00012266,2]
[352836554,1739354966482,-533.85,0.00012266,2]
[352836555,1739354966504,-500.0,0.00012266,2]
[352836556,1739354966527,-582.82,0.00012266,2]
[352836557,1739354966549,-500.0,0.00012266,2]
[352836558,1739354966572,-500.0,0.00012266,2]
[352836559,1739354966595,-298.46,0.00012266,2]
[352836560,1739354966617,-500.0,0.00012266,2]
[352836561,1739354966639,-500.0,0.00012266,2]
[352836562,1739354966664,-500.0,0.00012266,2]
[352836563,1739354966690,-500.0,0.00012266,2]
[352836564,1739354966711,-500.0,0.00012266,2]
[352836565,1739354966734,-500.0,0.00012266,2]
[352836566,1739354966757,-276.4194998,0.00012266,2]
[352836567,1739354966891,-500.0,0.00012266,2]
[352836568,1739354966916,-500.0,0.00012266,2]
[352836569,1739354966939,-500.0,0.00012266,2]
[352836570,1739354966962,-1136.29,0.00012266,2]
[352836571,1739354966983,-500.0,0.00012266,2]
[352836572,1739354967007,-4182.42,0.00012266,2]
[352836573,1739354967028,-500.0,0.00012266,2]
[352836574,1739354967050,-500.0,0.00012266,2]
[352836575,1739354967074,-536.29,0.00012266,2]
[352836576,1739354967096,-500.0,0.00012266,2]
[352836577,1739354967118,-500.0,0.00012268,2]
[352836578,1739354967140,-393.34371265,0.00012268,2]
[352836579,1739354967162,-500.0,0.00012268,2]
[352836580,1739354967184,-500.0,0.00012268,2]
[352836581,1739354967207,-500.0,0.00012402,2]
[352836582,1739354967229,-500.0,0.00012402,2]
[352836583,1739354967250,-500.0,0.00012402,2]
[352836584,1739354967271,-500.0,0.00012403,2]
[352836585,1739354967294,-500.0,0.00012403,2]
[352836586,1739354967315,-500.0,0.00012403,2]
[352836587,1739354967337,-500.0,0.00012403,2]
[352836588,1739354967358,-500.0,0.00012403,2]
[352836589,1739354967382,-500.0,0.00012403,2]
[352836590,1739354967403,-500.0,0.00012403,2]
[352836591,1739354967428,-500.0,0.00012403,2]
[352836592,1739354967451,-2816.37,0.00012403,2]
[352836593,1739354967473,-8858.28,0.00012403,2]
[352836594,1739354967496,-554.91,0.00012403,2]
[352836595,1739354967518,-532.94,0.00012403,2]
[352836596,1739354967540,-500.0,0.00012403,2]
[352836597,1739354967563,-500.0,0.00012403,2]
[352836598,1739354967585,-1123.34,0.00012403,2]
[352836599,1739354967606,-500.0,0.00012403,2]
[352836600,1739354967630,-500.0,0.00012403,2]
[352836601,1739354967652,-582.82,0.00012403,2]
[352836602,1739354967678,-500.0,0.00012403,2]
[352836603,1739354967702,-500.0,0.00012403,2]
[352836604,1739354967725,-500.0,0.00012403,2]
[352836605,1739354967746,-500.0,0.00012403,2]
[352836606,1739354967770,-500.0,0.00012403,2]
[352836607,1739354967791,-500.0,0.00012403,2]
[352836608,1739354967812,-500.0,0.00012403,2]
[352836609,1739354967833,-500.0,0.00012403,2]
[352836610,1739354967857,-647.78,0.00012403,2]
[352836611,1739354967880,-500.0,0.00012403,2]
[352836612,1739354967902,-1136.29,0.00012403,2]
[352836613,1739354967925,-500.0,0.00012403,2]
[352836614,1739354967948,-4182.42,0.00012403,2]
[352836615,1739354967972,-536.29,0.00012403,2]
[352836616,1739354967995,-500.0,0.00012403,2]
[352836617,1739354968016,-500.0,0.00012405,2]
[352836618,1739354968040,-500.0,0.00012405,2]
[352836619,1739354968062,-500.0,0.00012405,2]
[352836620,1739354968084,-9998.16847048,0.000125,2]
[352836621,1739354968106,-500.0,0.00012539,2]
[352836622,1739354968129,-500.0,0.00012539,2]
[352836623,1739354968150,-500.0,0.00012539,2]
[352836624,1739354968171,-500.0,0.0001254,2]
[352836625,1739354968195,-500.0,0.0001254,2]
[352836626,1739354968216,-500.0,0.0001254,2]
[352836627,1739354968238,-500.0,0.0001254,2]
[352836628,1739354968260,-500.0,0.0001254,2]
[352836629,1739354968281,-500.0,0.0001254,2]
[352836630,1739354968302,-310.79190154,0.0001254,2]
[352836631,1739354968324,-500.0,0.0001254,2]
[352836632,1739354968347,-2816.37,0.0001254,2]
[352836633,1739354968370,-8858.28,0.0001254,2]
[352836634,1739354968397,-554.91,0.0001254,2]
[352836635,1739354968419,-532.94,0.0001254,2]
[352836636,1739354968449,-500.0,0.0001254,2]
[352836637,1739354968472,-1123.34,0.0001254,2]
[352836638,1739354968494,-500.0,0.0001254,2]
[352836639,1739354968516,-500.0,0.0001254,2]
[352836640,1739354968538,-582.82,0.0001254,2]
[352836641,1739354968560,-500.0,0.0001254,2]
[352836642,1739354968583,-500.0,0.0001254,2]
[352836643,1739354968604,-500.0,0.0001254,2]
[352836644,1739354968627,-500.0,0.0001254,2]
[352836645,1739354968648,-500.0,0.0001254,2]
[352836646,1739354968669,-500.0,0.0001254,2]
[352836647,1739354968694,-500.0,0.0001254,2]
[352836648,1739354968716,-500.0,0.0001254,2]
[352836649,1739354968739,-500.0,0.0001254,2]
[352836650,1739354968762,-1136.29,0.0001254,2]
[352836651,1739354968784,-500.0,0.0001254,2]
[352836652,1739354968807,-4182.42,0.0001254,2]
[352836653,1739354968828,-536.29,0.0001254,2]
[352836654,1739354968851,-500.0,0.0001254,2]
[352836655,1739354968873,-500.0,0.00012542,2]
[352836656,1739354968895,-500.0,0.00012542,2]
[352836657,1739354968917,-500.0,0.00012542,2]
[352836658,1739354968940,-500.0,0.00012676,2]
[352836659,1739354968963,-500.0,0.00012676,2]
[352836660,1739354968986,-500.0,0.00012676,2]
[352836661,1739354969008,-500.0,0.00012677,2]
[352836662,1739354969032,-500.0,0.00012677,2]
[352836663,1739354969055,-500.0,0.00012677,2]
[352836664,1739354969076,-500.0,0.00012677,2]
[352836665,1739354969097,-500.0,0.00012677,2]
[352836666,1739354969119,-231.56000001,0.00012677,2]
[352836667,1739354969141,-500.0,0.00012677,2]
[352836668,1739354969165,-2816.37,0.00012677,2]
[352836669,1739354969187,-8858.28,0.00012677,2]
[352836670,1739354969209,-554.91,0.00012677,2]
[352836671,1739354969232,-532.94,0.00012677,2]
[352836672,1739354969256,-500.0,0.00012677,2]
[352836673,1739354969279,-1123.34,0.00012677,2]
[352836674,1739354969300,-500.0,0.00012677,2]
[352836675,1739354969324,-500.0,0.00012677,2]
[352836676,1739354969348,-582.82,0.00012677,2]
[352836677,1739354969370,-500.0,0.00012677,2]
[352836678,1739354969394,-500.0,0.00012677,2]
[352836679,1739354969416,-500.0,0.00012677,2]
[352836680,1739354969438,-476.86,0.00012677,2]
[352836681,1739354969459,-500.0,0.00012677,2]
[352836682,1739354969482,-500.0,0.00012677,2]
[352836683,1739354969504,-500.0,0.00012677,2]
[352836684,1739354969526,-256.03,0.00012677,2]
[352836685,1739354969549,-500.0,0.00012677,2]
[352836686,1739354969572,-1136.29,0.00012677,2]
[352836687,1739354969594,-500.0,0.00012677,2]
[352836688,1739354969617,-4182.42,0.00012677,2]
[352836689,1739354969640,-536.29,0.00012677,2]
[352836690,1739354969662,-500.0,0.00012677,2]
[352836691,1739354969684,-500.0,0.00012679,2]
[352836692,1739354969706,-500.0,0.00012679,2]
[352836693,1739354969727,-500.0,0.00012679,2]
[352836694,1739354969748,-411.6878396,0.00012682,2]
[352836695,1739354969771,-500.0,0.00012746,2]
[352836696,1739354969793,-500.0,0.00012813,2]
[352836697,1739354969815,-623.24661157,0.00012813,2]
[352836698,1739354969835,-500.0,0.00012813,2]
[352836699,1739354969856,-500.0,0.00012814,2]
[352836700,1739354969877,-500.0,0.00012814,2]
[352836701,1739354969900,-500.0,0.00012814,2]
[352836702,1739354969922,-500.0,0.00012814,2]
[352836703,1739354969944,-500.0,0.00012814,2]
[352836704,1739354969966,-500.0,0.00012814,2]
[352836705,1739354969990,-2816.37,0.00012814,2]
[352836706,1739354970012,-8858.28,0.00012814,2]
[352836707,1739354970039,-554.91,0.00012814,2]
[352836708,1739354970178,-532.94,0.00012814,2]
[352836709,1739354970203,-500.0,0.00012814,2]
[352836710,1739354970226,-1123.34,0.00012814,2]
[352836711,1739354970249,-500.0,0.00012814,2]
[352836712,1739354970271,-500.0,0.00012814,2]
[352836713,1739354970293,-582.82,0.00012814,2]
[352836714,1739354970316,-500.0,0.00012814,2]
[352836715,1739354970339,-500.0,0.00012814,2]
[352836716,1739354970361,-500.0,0.00012814,2]
[352836717,1739354970384,-500.0,0.00012814,2]
[352836718,1739354970406,-500.0,0.00012814,2]
[352836719,1739354970428,-500.0,0.00012814,2]
[352836720,1739354970452,-500.0,0.00012814,2]
[352836721,1739354970474,-1136.29,0.00012814,2]
[352836722,1739354970496,-500.0,0.00012814,2]
[352836723,1739354970529,-4182.42,0.00012814,2]
[352836724,1739354970559,-536.29,0.00012814,2]
[352836725,1739354970584,-500.0,0.00012814,2]
[352836726,1739354970609,-500.0,0.00012816,2]
[352836727,1739354970637,-373.58696128,0.00012853,2]
[352836728,1739354970660,-153.03811803,0.000129,2]
[352836729,1739354970685,-153.03811802,0.000129,2]
[352836730,1739354970710,-500.0,0.0001295,2]
[352836731,1739354970737,-500.0,0.0001295,2]
[352836732,1739354970761,-500.0,0.00012951,2]
[352836733,1739354970786,-500.0,0.00012951,2]
[352836734,1739354970809,-500.0,0.00012951,2]
[352836735,1739354970831,-500.0,0.00012951,2]
[352836736,1739354970853,-500.0,0.00012951,2]
[352836737,1739354970885,-500.0,0.00012951,2]
[352836738,1739354970912,-1935.46467748,0.00012951,2]
[352836775,1739355032787,-300.0,0.0001199,2]
[352836777,1739355032798,-500.0,0.00011991,2]
[352836779,1739355032807,-2590.79424061,0.00011991,2]
[352836781,1739355032817,-500.0,0.00011991,2]
[352836783,1739355032827,-525.25,0.00011991,2]
[352836785,1739355032836,-500.0,0.00011991,2]
[352836787,1739355032846,-879.03,0.00011991,2]
[352836789,1739355032855,-507.88760976,0.00011991,2]
[352836791,1739355032865,-171.51691923,0.00011991,2]
[352836793,1739355032877,-328.48308077,0.00011991,2]
[352836795,1739355032886,-500.03844736,0.00011991,2]
[352836796,1739355032896,-298.63026314,0.00011991,2]
[352836798,1739355032906,-500.0,0.00011991,2]
[352836800,1739355032916,-8791.07,0.00011992,2]
[352836802,1739355032925,-645.03484567,0.00011992,2]
[352836805,1739355032936,-417.65129523,0.00011992,2]
[352836837,1739355038638,-500.0,0.00011991,2]
[352836839,1739355038648,-82.34870477,0.00011992,2]
[352836841,1739355038657,-500.0,0.00011992,2]
[352836843,1739355038667,-150.17537591,0.00011992,2]
[352836845,1739355038676,-500.0,0.00011992,2]
[352836847,1739355038685,-437.74684838,0.00011992,2]
[352836849,1739355038699,-62.25315162,0.00011992,2]
[352836851,1739355038710,-500.0,0.00011992,2]
[352836853,1739355038719,-2657.75,0.00011992,2]
[352836855,1739355038729,-500.0,0.00011992,2]
[352836857,1739355038739,-500.0,0.00011992,2]
[352836859,1739355038748,-500.0,0.00011992,2]
[352836861,1739355038758,-500.0,0.00011992,2]
[352836863,1739355038767,-500.0,0.00011992,2]
[352836865,1739355038778,-500.0,0.00011992,2]
[352836867,1739355038788,-500.0,0.00012128,2]
[352836869,1739355038797,-525.25,0.00012128,2]
[352836871,1739355038806,-879.03,0.00012128,2]
[352836873,1739355038815,-500.0,0.00012128,2]
[352836875,1739355038827,-8791.07,0.00012129,2]
[352836877,1739355038835,-500.0,0.00012129,2]
[352836879,1739355038845,-500.0,0.00012129,2]
[352836880,1739355038856,-2657.75,0.00012129,2]
[352836882,1739355038865,-298.25359222,0.00012129,2]
[352836884,1739355038875,-500.0,0.00012129,2]
[352836886,1739355038884,-500.0,0.00012265,2]
[352836888,1739355038894,-525.25,0.00012265,2]
[352836890,1739355038903,-879.03,0.00012265,2]
[352836892,1739355038912,-500.0,0.00012265,2]
[352836894,1739355038921,-8791.07,0.00012266,2]
[352836896,1739355038930,-500.0,0.00012266,2]
[352836898,1739355038940,-500.0,0.00012266,2]
[352836900,1739355038949,-2657.75,0.00012266,2]
[352836902,1739355038963,-500.0,0.00012402,2]
[352836904,1739355038972,-525.25,0.00012402,2]
[352836906,1739355038981,-879.03,0.00012402,2]
[352836908,1739355038991,-500.0,0.00012402,2]
[352836910,1739355039000,-8791.07,0.00012403,2]
[352836911,1739355039009,-500.0,0.00012403,2]
[352836913,1739355039018,-500.0,0.00012403,2]
[352836915,1739355039028,-2657.75,0.00012403,2]
[352836917,1739355039037,-500.0,0.00012539,2]
[352836919,1739355039046,-525.25,0.00012539,2]
[352836921,1739355039055,-879.03,0.00012539,2]
[352836923,1739355039065,-500.0,0.00012539,2]
[352836925,1739355039074,-8791.07,0.0001254,2]
[352836927,1739355039084,-500.0,0.0001254,2]
[352836929,1739355039093,-500.0,0.0001254,2]
[352836931,1739355039102,-2657.75,0.0001254,2]
[352836933,1739355039112,-500.0,0.00012676,2]
[352836935,1739355039121,-525.25,0.00012676,2]
[352836937,1739355039130,-879.03,0.00012676,2]
[352836939,1739355039139,-500.0,0.00012676,2]
[352836941,1739355039149,-8791.07,0.00012677,2]
[352836942,1739355039158,-500.0,0.00012677,2]
[352836944,1739355039167,-500.0,0.00012677,2]
[352836946,1739355039176,-2657.75,0.00012677,2]
[352836948,1739355039186,-500.0,0.00012813,2]
[352836950,1739355039195,-525.25,0.00012813,2]
[352836952,1739355039204,-879.03,0.00012813,2]
[352836954,1739355039214,-500.0,0.00012813,2]
[352836956,1739355039223,-8791.07,0.00012814,2]
[352836958,1739355039232,-500.0,0.00012814,2]
[352836960,1739355039241,-500.0,0.00012814,2]
[352836962,1739355039250,-2657.75,0.00012814,2]
[352836964,1739355039260,-500.0,0.0001295,2]
[352836965,1739355039270,-525.25,0.0001295,2]
[352836967,1739355039279,-879.03,0.0001295,2]
[352836969,1739355039292,-500.0,0.0001295,2]
[352836971,1739355039302,-500.0,0.00012951,2]
[352836973,1739355039312,-582.82,0.00012951,2]
[352836975,1739355039321,-500.0,0.00012951,2]
[352836977,1739355039331,-500.0,0.00012951,2]
[352836979,1739355039340,-343.31,0.00012951,2]
[352836981,1739355039350,-500.0,0.00012951,2]
[352836983,1739355039359,-500.0,0.00012951,2]
[352836985,1739355039369,-500.0,0.00012951,2]
[352836987,1739355039378,-500.0,0.00012951,2]
[352836989,1739355039387,-1136.29,0.00012951,2]
[352836991,1739355039396,-500.0,0.00012951,2]
[352836993,1739355039406,-4182.42,0.00012951,2]
[352836995,1739355039415,-536.29,0.00012951,2]
[352836997,1739355039424,-500.0,0.00012951,2]
[352836999,1739355039434,-8791.07,0.00012951,2]
[352837001,1739355039443,-500.0,0.00012951,2]
[352837003,1739355039453,-295.01765703,0.00012951,2]
[352837005,1739355039462,-2657.75,0.00012951,2]
[352837007,1739355039471,-500.0,0.00012953,2]
[352837009,1739355039481,-9998.16847048,0.00013,2]
[352837011,1739355039490,-500.0,0.0001308,2]
[352837013,1739355039499,-500.0,0.00013086,2]
[352837015,1739355039508,-298.70247751,0.00013086,2]
[352837016,1739355039518,-500.0,0.00013087,2]
[352837019,1739355039528,-500.0,0.00013087,2]
[352837021,1739355039537,-525.25,0.00013087,2]
[352837022,1739355039546,-879.03,0.00013087,2]
[352837024,1739355039555,-500.0,0.00013087,2]
[352837026,1739355039565,-500.0,0.00013088,2]
[352837028,1739355039574,-500.0,0.00013088,2]
[352837030,1739355039583,-500.0,0.00013088,2]
[352837032,1739355039592,-500.0,0.00013088,2]
[352837034,1739355039601,-500.0,0.00013088,2]
[352837036,1739355039610,-500.0,0.00013088,2]
[352837038,1739355039619,-582.82,0.00013088,2]
[352837040,1739355039628,-500.0,0.00013088,2]
[352837042,1739355039637,-500.0,0.00013088,2]
[352837044,1739355039647,-500.0,0.00013088,2]
[352837046,1739355039656,-500.0,0.00013088,2]
[352837048,1739355039666,-500.0,0.00013088,2]
[352837050,1739355039676,-500.0,0.00013088,2]
[352837052,1739355039686,-1136.29,0.00013088,2]
[352837054,1739355039697,-500.0,0.00013088,2]
[352837056,1739355039709,-4182.42,0.00013088,2]
[352837058,1739355039719,-536.29,0.00013088,2]
[352837060,1739355039728,-500.0,0.00013088,2]
[352837062,1739355039739,-8791.07,0.00013088,2]
[352837064,1739355039748,-500.0,0.00013088,2]
[352837066,1739355039758,-2657.75,0.00013088,2]
[352837068,1739355039767,-500.0,0.0001309,2]
[352837070,1739355039777,-206.04651445,0.00013218,2]
[352837072,1739355039787,-500.0,0.00013224,2]
[352837074,1739355039797,-500.0,0.00013224,2]
[352837076,1739355039808,-525.25,0.00013224,2]
[352837078,1739355039817,-879.03,0.00013224,2]
[352837080,1739355039827,-500.0,0.00013224,2]
[352837082,1739355039836,-500.0,0.00013225,2]
[352837083,1739355039845,-500.0,0.00013225,2]
[352837085,1739355039855,-500.0,0.00013225,2]
[352837087,1739355039864,-500.0,0.00013225,2]
[352837089,1739355039873,-500.0,0.00013225,2]
[352837091,1739355039882,-500.0,0.00013225,2]
[352837093,1739355039892,-582.82,0.00013225,2]
[352837095,1739355039901,-500.0,0.00013225,2]
[352837097,1739355039911,-500.0,0.00013225,2]
[352837099,1739355039920,-500.0,0.00013225,2]
[352837101,1739355039930,-500.0,0.00013225,2]
[352837103,1739355039940,-500.0,0.00013225,2]
[352837105,1739355039948,-465.84,0.00013225,2]
[352837107,1739355039958,-1136.29,0.00013225,2]
[352837109,1739355039967,-500.0,0.00013225,2]
[352837111,1739355039976,-4182.42,0.00013225,2]
[352837113,1739355039985,-536.29,0.00013225,2]
[352837115,1739355039995,-500.0,0.00013225,2]
[352837117,1739355040004,-8791.07,0.00013225,2]
[352837119,1739355040014,-500.0,0.00013225,2]
[352837121,1739355040024,-2657.75,0.00013225,2]
[352837123,1739355040033,-500.0,0.00013227,2]
[352837125,1739355040042,-500.0,0.00013361,2]
[352837127,1739355040053,-367.36,0.00013361,2]
[352837128,1739355040063,-525.25,0.00013361,2]
[352837130,1739355040072,-879.03,0.00013361,2]
[352837132,1739355040081,-500.0,0.00013361,2]
[352837134,1739355040090,-500.0,0.00013362,2]
[352837137,1739355040099,-500.0,0.00013362,2]
[352837140,1739355040108,-500.0,0.00013362,2]
[352837143,1739355040117,-500.0,0.00013362,2]
[352837146,1739355040126,-500.0,0.00013362,2]
[352837149,1739355040135,-500.0,0.00013362,2]